[Event "Late Titled Tuesday Blitz February 8 2022"]
[White "Federzoni, Enzo"]
[Black "Dourerassou, Jonathan"]
[WhiteFideId "2173301"]
[BlackFideId "628050"]
[WhiteElo "1956"]
[BlackElo "2513"]
[Result "0-1"]
[Round "01"]
[TimeControl "180+1"]
[Date "2022.02.09"]
[WhiteClock "0:00:02"]
[BlackClock "0:00:35"]

1. c4 {[%clk 0:02:59]}  d6 {[%clk 0:02:59]} 2. d4 {[%clk 0:02:58]}  g6 {[%clk 0:03:00]} 3. Nf3 {[%clk 0:02:56]}  Bg7 {[%clk 0:03:00]} 4. g3 {[%clk 0:02:57]}  Nf6 {[%clk 0:03:01]} 5. Bg2 {[%clk 0:02:57]}  O-O {[%clk 0:03:01]} 6. O-O {[%clk 0:02:54]}  Nbd7 {[%clk 0:03:02]} 7. Nc3 {[%clk 0:02:54]}  a6 {[%clk 0:03:03]} 8. b3 {[%clk 0:02:54]}  c5 {[%clk 0:03:03]} 9. Bb2 {[%clk 0:02:53]}  cxd4 {[%clk 0:03:03]} 10. Nxd4 {[%clk 0:02:54]}  Nc5 {[%clk 0:03:03]} 11. e3 {[%clk 0:02:54]}  Rb8 {[%clk 0:03:03]} 12. Qe2 {[%clk 0:02:52]}  Bg4 {[%clk 0:03:03]} 13. f3 {[%clk 0:02:46]}  Bd7 {[%clk 0:03:03]} 14. Rad1 {[%clk 0:02:45]}  Qa5 {[%clk 0:03:02]} 15. Qd2 {[%clk 0:02:42]}  Rfc8 {[%clk 0:03:00]} 16. Nd5 {[%clk 0:02:41]}  Qxd2 {[%clk 0:02:59]} 17. Nxf6+ {[%clk 0:02:40]}  Bxf6 {[%clk 0:03:00]} 18. Rxd2 {[%clk 0:02:41]}  b5 {[%clk 0:02:59]} 19. cxb5 {[%clk 0:02:37]}  axb5 {[%clk 0:03:00]} 20. e4 {[%clk 0:02:36]}  b4 {[%clk 0:02:57]} 21. f4 {[%clk 0:02:31]}  Bg7 {[%clk 0:02:44]} 22. Re1 {[%clk 0:02:28]}  Bb5 {[%clk 0:02:40]} 23. Nxb5 {[%clk 0:02:26]}  Bxb2 {[%clk 0:02:22]} 24. Nxd6 {[%clk 0:02:06]}  exd6 {[%clk 0:02:21]} 25. Rxb2 {[%clk 0:02:05]}  Nd3 {[%clk 0:02:21]} 26. Ree2 {[%clk 0:02:05]}  Rc1+ {[%clk 0:02:17]} 27. Bf1 {[%clk 0:02:05]}  Nxb2 {[%clk 0:02:16]} 28. Rxb2 {[%clk 0:02:06]}  Re8 {[%clk 0:02:14]} 29. Re2 {[%clk 0:01:57]}  d5 {[%clk 0:02:12]} 30. e5 {[%clk 0:01:57]}  d4 {[%clk 0:02:11]} 31. Rd2 {[%clk 0:01:57]}  Rd8 {[%clk 0:02:04]} 32. Kf2 {[%clk 0:01:57]}  Kf8 {[%clk 0:02:03]} 33. Bc4 {[%clk 0:01:55]}  Rc3 {[%clk 0:02:02]} 34. Bd3 {[%clk 0:01:48]}  Ke7 {[%clk 0:02:01]} 35. Bc4 {[%clk 0:01:48]}  Rd7 {[%clk 0:02:00]} 36. g4 {[%clk 0:01:47]}  f6 {[%clk 0:01:58]} 37. e6 {[%clk 0:01:45]}  Rd6 {[%clk 0:01:53]} 38. f5 {[%clk 0:01:45]}  gxf5 {[%clk 0:01:47]} 39. gxf5 {[%clk 0:01:46]}  d3 {[%clk 0:01:42]} 40. Ke3 {[%clk 0:01:44]}  Rc2 {[%clk 0:01:42]} 41. Bxd3 {[%clk 0:01:40]}  Rxd2 {[%clk 0:01:39]} 42. Kxd2 {[%clk 0:01:41]}  Rd5 {[%clk 0:01:38]} 43. Ke3 {[%clk 0:01:39]}  Ra5 {[%clk 0:01:38]} 44. Kf3 {[%clk 0:00:59]}  Rxa2 {[%clk 0:01:36]} 45. Kg3 {[%clk 0:00:58]}  Rb2 {[%clk 0:01:29]} 46. Bc4 {[%clk 0:00:54]}  Rc2 {[%clk 0:01:30]} 47. Bd5 {[%clk 0:00:50]}  Kd6 {[%clk 0:01:28]} 48. e7 {[%clk 0:00:28]}  Kxe7 {[%clk 0:01:26]} 49. Be6 {[%clk 0:00:28]}  Kd6 {[%clk 0:01:25]} 50. h3 {[%clk 0:00:26]}  Ke5 {[%clk 0:01:25]} 51. Kg4 {[%clk 0:00:23]}  Rg2+ {[%clk 0:01:23]} 52. Kh5 {[%clk 0:00:22]}  Kf4 {[%clk 0:01:17]} 53. h4 {[%clk 0:00:20]}  Rg4 {[%clk 0:01:15]} 54. Bd7 {[%clk 0:00:19]}  Rg7 {[%clk 0:01:14]} 55. Be6 {[%clk 0:00:19]}  Rc7 {[%clk 0:01:13]} 56. Kh6 {[%clk 0:00:18]}  Ke5 {[%clk 0:01:03]} 57. h5 {[%clk 0:00:19]}  Rb7 {[%clk 0:01:01]} 58. Bd7 {[%clk 0:00:16]}  Rc7 {[%clk 0:00:49]} 59. Be6 {[%clk 0:00:16]}  Kf4 {[%clk 0:00:46]} 60. Bd7 {[%clk 0:00:13]}  Rc3 {[%clk 0:00:46]} 61. Be6 {[%clk 0:00:13]}  Rh3 {[%clk 0:00:46]} 62. Kxh7 {[%clk 0:00:12]}  Rxh5+ {[%clk 0:00:46]} 63. Kg6 {[%clk 0:00:11]}  Rh3 {[%clk 0:00:41]} 64. Kxf6 {[%clk 0:00:10]}  Rh6+ {[%clk 0:00:42]} 65. Ke7 {[%clk 0:00:10]}  Ke5 {[%clk 0:00:42]} 66. Kd7 {[%clk 0:00:10]}  Rh4 {[%clk 0:00:40]} 67. Kc6 {[%clk 0:00:09]}  Rf4 {[%clk 0:00:39]} 68. Kb5 {[%clk 0:00:08]}  Kd6 {[%clk 0:00:37]} 69. Bc4 {[%clk 0:00:08]}  Rxf5+ {[%clk 0:00:37]} 70. Kxb4 {[%clk 0:00:08]}  Kc6 {[%clk 0:00:38]} 71. Ka3 {[%clk 0:00:08]}  Kc5 {[%clk 0:00:38]} 72. Bg8 {[%clk 0:00:06]}  Rf4 {[%clk 0:00:38]} 73. Bc4 {[%clk 0:00:06]}  Kd4 {[%clk 0:00:38]} 74. Bg8 {[%clk 0:00:06]}  Kc3 {[%clk 0:00:38]} 75. Bc4 {[%clk 0:00:06]}  Rf8 {[%clk 0:00:37]} 76. Ka4 {[%clk 0:00:06]}  Rb8 {[%clk 0:00:37]} 77. Ka5 {[%clk 0:00:05]}  Kd4 {[%clk 0:00:37]} 78. Ka6 {[%clk 0:00:05]}  Kc5 {[%clk 0:00:37]} 79. Ka5 {[%clk 0:00:06]}  Ra8+ {[%clk 0:00:37]} 80. Ba6 {[%clk 0:00:06]}  Rb8 {[%clk 0:00:35]} 81. Bc4 {[%clk 0:00:06]}  Rb7 {[%clk 0:00:35]} 82. Ba6 {[%clk 0:00:05]}  Rxb3 {[%clk 0:00:35]} 83. Ka4 {[%clk 0:00:02]}  Rb1 {[%clk 0:00:35]} 0-1


[Site "https://www.chess.com"]

[Event "Late Titled Tuesday Blitz February 8 2022"]
[White "Goltsev, Dmitry"]
[Black "Martinez Alcantara, Jose Eduardo"]
[WhiteFideId "24176710"]
[BlackFideId "3805662"]
[WhiteElo "2273"]
[BlackElo "2690"]
[Result "0-1"]
[Round "01"]
[TimeControl "180+1"]
[Date "2022.02.08"]
[WhiteClock "0:00:04"]
[BlackClock "0:00:08"]

1. e4 {[%clk 0:02:59]}  c5 {[%clk 0:02:59]} 2. Nf3 {[%clk 0:02:59]}  d6 {[%clk 0:02:58]} 3. d4 {[%clk 0:02:59]}  cxd4 {[%clk 0:02:57]} 4. Nxd4 {[%clk 0:03:00]}  Nf6 {[%clk 0:02:58]} 5. Nc3 {[%clk 0:03:00]}  a6 {[%clk 0:02:59]} 6. Bg5 {[%clk 0:03:01]}  e6 {[%clk 0:02:58]} 7. Qd2 {[%clk 0:03:01]}  Be7 {[%clk 0:02:57]} 8. O-O-O {[%clk 0:03:02]}  h6 {[%clk 0:02:56]} 9. Be3 {[%clk 0:02:57]}  Ng4 {[%clk 0:02:42]} 10. Kb1 {[%clk 0:02:51]}  Nxe3 {[%clk 0:02:35]} 11. Qxe3 {[%clk 0:02:51]}  Nc6 {[%clk 0:02:33]} 12. Nb3 {[%clk 0:02:50]}  Qc7 {[%clk 0:02:29]} 13. g3 {[%clk 0:02:49]}  Bd7 {[%clk 0:02:25]} 14. f4 {[%clk 0:02:48]}  b5 {[%clk 0:02:14]} 15. Bg2 {[%clk 0:02:46]}  Rb8 {[%clk 0:02:11]} 16. Rhe1 {[%clk 0:02:41]}  O-O {[%clk 0:02:04]} 17. Nd5 {[%clk 0:02:23]}  exd5 {[%clk 0:02:03]} 18. exd5 {[%clk 0:02:24]}  Nb4 {[%clk 0:02:04]} 19. c3 {[%clk 0:02:22]}  Bf6 {[%clk 0:01:39]} 20. cxb4 {[%clk 0:02:19]}  Rfe8 {[%clk 0:01:23]} 21. Qd3 {[%clk 0:02:11]}  Rxe1 {[%clk 0:01:23]} 22. Rxe1 {[%clk 0:02:12]}  Qc4 {[%clk 0:01:24]} 23. Qxc4 {[%clk 0:01:31]}  bxc4 {[%clk 0:01:24]} 24. Na5 {[%clk 0:01:09]}  Rxb4 {[%clk 0:01:24]} 25. b3 {[%clk 0:01:08]}  cxb3 {[%clk 0:01:24]} 26. axb3 {[%clk 0:01:03]}  Rb5 {[%clk 0:01:21]} 27. Nc4 {[%clk 0:00:58]}  Rxb3+ {[%clk 0:01:17]} 28. Ka2 {[%clk 0:00:57]}  Rb4 {[%clk 0:01:03]} 29. Bf1 {[%clk 0:00:54]}  Rb5 {[%clk 0:00:58]} 30. Rd1 {[%clk 0:00:39]}  Rc5 {[%clk 0:00:33]} 31. Nxd6 {[%clk 0:00:35]}  Ra5+ {[%clk 0:00:30]} 32. Kb3 {[%clk 0:00:28]}  Ba4+ {[%clk 0:00:30]} 33. Kb4 {[%clk 0:00:27]}  Bc3+ {[%clk 0:00:31]} 34. Kxc3 {[%clk 0:00:28]}  Bxd1 {[%clk 0:00:32]} 35. Bc4 {[%clk 0:00:13]}  Bf3 {[%clk 0:00:25]} 36. Kd4 {[%clk 0:00:09]}  Ra1 {[%clk 0:00:26]} 37. Kc5 {[%clk 0:00:06]}  a5 {[%clk 0:00:24]} 38. Nb5 {[%clk 0:00:04]}  Rd1 {[%clk 0:00:14]} 39. d6 {[%clk 0:00:04]}  Bg4 {[%clk 0:00:15]} 40. Nd4 {[%clk 0:00:03]}  a4 {[%clk 0:00:14]} 41. Nb5 {[%clk 0:00:02]}  Bd7 {[%clk 0:00:13]} 42. Nc3 {[%clk 0:00:01]}  Rc1 {[%clk 0:00:13]} 43. Kb4 {[%clk 0:00:01]}  Rc2 {[%clk 0:00:12]} 44. Ba2 {[%clk 0:00:01]}  Rd2 {[%clk 0:00:12]} 45. Bd5 {[%clk 0:00:01]}  Rd4+ {[%clk 0:00:09]} 46. Kc5 {[%clk 0:00:02]}  Rd3 {[%clk 0:00:09]} 47. Nb5 {[%clk 0:00:02]}  Bxb5 {[%clk 0:00:08]} 48. Be4 {[%clk 0:00:02]}  Rd2 {[%clk 0:00:07]} 49. Kxb5 {[%clk 0:00:03]}  Rxd6 {[%clk 0:00:07]} 50. Kxa4 {[%clk 0:00:03]}  Rd4+ {[%clk 0:00:07]} 51. Kb3 {[%clk 0:00:04]}  Rxe4 {[%clk 0:00:08]} 0-1


[Site "https://www.chess.com"]

[Event "Late Titled Tuesday Blitz February 8 2022"]
[White "Golubenko, Valentina"]
[Black "Nikologorskiy, Konstantin"]
[WhiteFideId "4501993"]
[BlackFideId "24111708"]
[WhiteElo "2164"]
[BlackElo "2346"]
[Result "1-0"]
[Round "01"]
[TimeControl "180+1"]
[Date "2022.02.09"]
[WhiteClock "0:00:22"]
[BlackClock "0:00:08"]

1. d4 {[%clk 0:02:59]}  d5 {[%clk 0:02:55]} 2. g3 {[%clk 0:02:59]}  c6 {[%clk 0:02:51]} 3. Bg2 {[%clk 0:02:59]}  e6 {[%clk 0:02:49]} 4. Nf3 {[%clk 0:02:58]}  Nd7 {[%clk 0:02:49]} 5. O-O {[%clk 0:02:57]}  g6 {[%clk 0:02:49]} 6. b3 {[%clk 0:02:58]}  Bg7 {[%clk 0:02:49]} 7. Bb2 {[%clk 0:02:58]}  Ne7 {[%clk 0:02:50]} 8. c4 {[%clk 0:02:58]}  O-O {[%clk 0:02:50]} 9. Nc3 {[%clk 0:02:58]}  b6 {[%clk 0:02:46]} 10. e4 {[%clk 0:02:56]}  dxe4 {[%clk 0:02:45]} 11. Nxe4 {[%clk 0:02:56]}  Bb7 {[%clk 0:02:46]} 12. Nd6 {[%clk 0:02:23]}  Qc7 {[%clk 0:02:44]} 13. Ba3 {[%clk 0:02:21]}  Ba6 {[%clk 0:02:16]} 14. Rc1 {[%clk 0:02:08]}  Rfd8 {[%clk 0:01:52]} 15. Qe2 {[%clk 0:02:00]}  Nf8 {[%clk 0:01:27]} 16. Nxf7 {[%clk 0:01:40]}  Kxf7 {[%clk 0:01:03]} 17. Ng5+ {[%clk 0:01:40]}  Kg8 {[%clk 0:01:04]} 18. Nxe6 {[%clk 0:01:40]}  Nxe6 {[%clk 0:01:04]} 19. Qxe6+ {[%clk 0:01:39]}  Kh8 {[%clk 0:01:05]} 20. Bxe7 {[%clk 0:01:19]}  Rxd4 {[%clk 0:01:04]} 21. Qxc6 {[%clk 0:00:44]}  Qxc6 {[%clk 0:00:59]} 22. Bxc6 {[%clk 0:00:44]}  Rc8 {[%clk 0:01:00]} 23. Bd5 {[%clk 0:00:44]}  Rd2 {[%clk 0:00:57]} 24. a3 {[%clk 0:00:37]}  Rb2 {[%clk 0:00:57]} 25. b4 {[%clk 0:00:33]}  Re2 {[%clk 0:00:54]} 26. Bg5 {[%clk 0:00:26]}  h6 {[%clk 0:00:53]} 27. Be3 {[%clk 0:00:26]}  Bb2 {[%clk 0:00:48]} 28. Rcd1 {[%clk 0:00:23]}  Bxc4 {[%clk 0:00:37]} 29. Bxc4 {[%clk 0:00:18]}  Rxc4 {[%clk 0:00:37]} 30. Rd8+ {[%clk 0:00:18]}  Kg7 {[%clk 0:00:35]} 31. Rfd1 {[%clk 0:00:19]}  Bxa3 {[%clk 0:00:29]} 32. R1d6 {[%clk 0:00:16]}  Rc7 {[%clk 0:00:23]} 33. Bd4+ {[%clk 0:00:16]}  Kf7 {[%clk 0:00:22]} 34. Rh8 {[%clk 0:00:16]}  Bxb4 {[%clk 0:00:17]} 35. Rh7+ {[%clk 0:00:15]}  Ke8 {[%clk 0:00:09]} 36. Rh8+ {[%clk 0:00:15]}  Ke7 {[%clk 0:00:09]} 37. Rxg6 {[%clk 0:00:16]}  Kd7 {[%clk 0:00:09]} 38. Rg7+ {[%clk 0:00:16]}  Kc6 {[%clk 0:00:09]} 39. Rxh6+ {[%clk 0:00:17]}  Kb7 {[%clk 0:00:09]} 40. Rgg6 {[%clk 0:00:18]}  Re1+ {[%clk 0:00:07]} 41. Kg2 {[%clk 0:00:19]}  Rec1 {[%clk 0:00:07]} 42. Rg7 {[%clk 0:00:19]}  Rxg7 {[%clk 0:00:07]} 43. Bxg7 {[%clk 0:00:20]}  a5 {[%clk 0:00:07]} 44. Rh7 {[%clk 0:00:21]}  Ka6 {[%clk 0:00:07]} 45. Bh6 {[%clk 0:00:22]}  a4 {[%clk 0:00:08]} 46. Bxc1 {[%clk 0:00:22]} 1-0


[Site "https://www.chess.com"]

[Event "Late Titled Tuesday Blitz February 8 2022"]
[White "Golubovskis, Maksims"]
[Black "Stearman, Josiah"]
[WhiteFideId "11608528"]
[BlackFideId "2062496"]
[WhiteElo "2066"]
[BlackElo "2402"]
[Result "0-1"]
[Round "01"]
[TimeControl "180+1"]
[Date "2022.02.09"]
[WhiteClock "0:00:01"]
[BlackClock "0:01:30"]

1. e4 {[%clk 0:02:58]}  c5 {[%clk 0:02:57]} 2. Nf3 {[%clk 0:02:57]}  Nc6 {[%clk 0:02:58]} 3. d4 {[%clk 0:02:55]}  cxd4 {[%clk 0:02:58]} 4. Nxd4 {[%clk 0:02:54]}  g6 {[%clk 0:02:58]} 5. Nc3 {[%clk 0:02:46]}  Bg7 {[%clk 0:02:57]} 6. Nf3 {[%clk 0:02:31]}  Nf6 {[%clk 0:02:46]} 7. Bc4 {[%clk 0:02:25]}  O-O {[%clk 0:02:41]} 8. O-O {[%clk 0:02:15]}  d6 {[%clk 0:02:33]} 9. Be3 {[%clk 0:01:56]}  Ng4 {[%clk 0:02:31]} 10. Bg5 {[%clk 0:01:41]}  Nge5 {[%clk 0:02:22]} 11. Nxe5 {[%clk 0:01:33]}  Nxe5 {[%clk 0:02:20]} 12. Bb3 {[%clk 0:01:28]}  h6 {[%clk 0:02:12]} 13. Be3 {[%clk 0:01:18]}  Kh7 {[%clk 0:02:05]} 14. Qd2 {[%clk 0:01:00]}  Ng4 {[%clk 0:02:04]} 15. Rad1 {[%clk 0:00:43]}  Be6 {[%clk 0:02:01]} 16. Nd5 {[%clk 0:00:34]}  Nxe3 {[%clk 0:01:57]} 17. Qxe3 {[%clk 0:00:33]}  Bxd5 {[%clk 0:01:56]} 18. exd5 {[%clk 0:00:26]}  Bxb2 {[%clk 0:01:54]} 19. Rfe1 {[%clk 0:00:25]}  Bf6 {[%clk 0:01:53]} 20. Rd3 {[%clk 0:00:19]}  Qa5 {[%clk 0:01:53]} 21. Qe4 {[%clk 0:00:17]}  Rac8 {[%clk 0:01:49]} 22. Rh3 {[%clk 0:00:16]}  Rc3 {[%clk 0:01:46]} 23. Ree3 {[%clk 0:00:14]}  Rfc8 {[%clk 0:01:42]} 24. Rxc3 {[%clk 0:00:06]}  Rxc3 {[%clk 0:01:41]} 25. Rxc3 {[%clk 0:00:06]}  Qxc3 {[%clk 0:01:42]} 26. h3 {[%clk 0:00:04]}  Be5 {[%clk 0:01:40]} 27. f4 {[%clk 0:00:03]}  f5 {[%clk 0:01:35]} 28. Qe2 {[%clk 0:00:01]}  Qd4+ {[%clk 0:01:34]} 29. Kh1 {[%clk 0:00:01]}  Qa1+ {[%clk 0:01:30]} 0-1


[Site "https://www.chess.com"]

[Event "Late Titled Tuesday Blitz February 8 2022"]
[White "Howell, David W L"]
[Black "yondaymebr"]
[WhiteFideId "410608"]
[WhiteElo "2559"]
[BlackElo "2531"]
[Result "1-0"]
[Round "01"]
[TimeControl "180+1"]
[Date "2022.02.08"]
[WhiteClock "0:00:22"]
[BlackClock "0:00:01"]

1. d4 {[%clk 0:02:55]}  d5 {[%clk 0:03:00]} 2. Bg5 {[%clk 0:02:53]}  Nf6 {[%clk 0:02:58]} 3. e3 {[%clk 0:02:50]}  e6 {[%clk 0:02:58]} 4. c4 {[%clk 0:02:49]}  Be7 {[%clk 0:02:57]} 5. Nc3 {[%clk 0:02:49]}  O-O {[%clk 0:02:57]} 6. Nf3 {[%clk 0:02:47]}  h6 {[%clk 0:02:56]} 7. Bh4 {[%clk 0:02:40]}  b6 {[%clk 0:02:55]} 8. Rc1 {[%clk 0:02:35]}  Bb7 {[%clk 0:02:53]} 9. Bxf6 {[%clk 0:02:36]}  Bxf6 {[%clk 0:02:53]} 10. cxd5 {[%clk 0:02:36]}  exd5 {[%clk 0:02:51]} 11. b4 {[%clk 0:02:37]}  c5 {[%clk 0:02:42]} 12. bxc5 {[%clk 0:02:06]}  bxc5 {[%clk 0:02:43]} 13. dxc5 {[%clk 0:02:05]}  Qa5 {[%clk 0:02:40]} 14. Qd2 {[%clk 0:02:05]}  Qxc5 {[%clk 0:01:45]} 15. Be2 {[%clk 0:02:03]}  Rc8 {[%clk 0:01:40]} 16. Nd4 {[%clk 0:02:03]}  Nc6 {[%clk 0:01:37]} 17. Ne4 {[%clk 0:01:40]}  Qe7 {[%clk 0:00:53]} 18. Nxf6+ {[%clk 0:01:36]}  Qxf6 {[%clk 0:00:53]} 19. Nxc6 {[%clk 0:01:35]}  Rxc6 {[%clk 0:00:48]} 20. Rxc6 {[%clk 0:01:34]}  Bxc6 {[%clk 0:00:49]} 21. O-O {[%clk 0:01:34]}  Rb8 {[%clk 0:00:48]} 22. Bf3 {[%clk 0:01:24]}  Qb2 {[%clk 0:00:40]} 23. Qa5 {[%clk 0:01:15]}  Qb6 {[%clk 0:00:39]} 24. Qc3 {[%clk 0:01:05]}  Bb5 {[%clk 0:00:29]} 25. Rb1 {[%clk 0:01:00]}  Qd8 {[%clk 0:00:14]} 26. Qe5 {[%clk 0:00:51]}  Rb6 {[%clk 0:00:07]} 27. Bxd5 {[%clk 0:00:33]}  Bd3 {[%clk 0:00:08]} 28. Rxb6 {[%clk 0:00:30]}  Qxb6 {[%clk 0:00:07]} 29. h4 {[%clk 0:00:26]}  Qb1+ {[%clk 0:00:07]} 30. Kh2 {[%clk 0:00:25]}  Bg6 {[%clk 0:00:06]} 31. h5 {[%clk 0:00:24]}  Bd3 {[%clk 0:00:02]} 32. Qe8+ {[%clk 0:00:21]}  Kh7 {[%clk 0:00:03]} 33. Bxf7 {[%clk 0:00:22]}  Qb2 {[%clk 0:00:01]} 34. Bg6+ {[%clk 0:00:21]}  Bxg6 {[%clk 0:00:01]} 35. hxg6# {[%clk 0:00:22]} 1-0


[Site "https://www.chess.com"]

[Event "Late Titled Tuesday Blitz February 8 2022"]
[White "Ibarra Jerez, Jose Carlos"]
[Black "Bilan, Danila"]
[WhiteFideId "2226332"]
[BlackFideId "24161918"]
[WhiteElo "2626"]
[BlackElo "2164"]
[Result "1-0"]
[Round "01"]
[TimeControl "180+1"]
[Date "2022.02.08"]
[WhiteClock "0:00:27"]
[BlackClock "0:00:01"]

1. e4 {[%clk 0:02:59]}  c6 {[%clk 0:02:59]} 2. Nf3 {[%clk 0:02:58]}  d5 {[%clk 0:03:00]} 3. d3 {[%clk 0:02:58]}  Bg4 {[%clk 0:02:59]} 4. h3 {[%clk 0:02:58]}  Bxf3 {[%clk 0:02:58]} 5. Qxf3 {[%clk 0:02:59]}  e6 {[%clk 0:02:58]} 6. g3 {[%clk 0:02:58]}  Nd7 {[%clk 0:02:56]} 7. Bg2 {[%clk 0:02:57]}  g6 {[%clk 0:02:57]} 8. O-O {[%clk 0:02:44]}  Bg7 {[%clk 0:02:56]} 9. exd5 {[%clk 0:02:39]}  cxd5 {[%clk 0:02:51]} 10. c4 {[%clk 0:02:40]}  Ngf6 {[%clk 0:02:45]} 11. Nc3 {[%clk 0:02:39]}  O-O {[%clk 0:02:42]} 12. Re1 {[%clk 0:02:21]}  Nc5 {[%clk 0:02:15]} 13. Bf4 {[%clk 0:02:04]}  d4 {[%clk 0:02:04]} 14. Nb5 {[%clk 0:02:02]}  a6 {[%clk 0:01:48]} 15. Bd6 {[%clk 0:01:53]}  axb5 {[%clk 0:01:25]} 16. Bxc5 {[%clk 0:01:53]}  bxc4 {[%clk 0:01:20]} 17. Bxf8 {[%clk 0:01:45]}  Qxf8 {[%clk 0:01:17]} 18. dxc4 {[%clk 0:01:45]}  Rb8 {[%clk 0:01:15]} 19. Rad1 {[%clk 0:01:41]}  Nd7 {[%clk 0:01:08]} 20. a3 {[%clk 0:01:37]}  Qc5 {[%clk 0:01:03]} 21. Qe2 {[%clk 0:01:17]}  Ne5 {[%clk 0:00:51]} 22. Bf1 {[%clk 0:01:03]}  d3 {[%clk 0:00:42]} 23. Qe4 {[%clk 0:01:03]}  f5 {[%clk 0:00:30]} 24. Qe3 {[%clk 0:00:56]}  Qc6 {[%clk 0:00:28]} 25. Bg2 {[%clk 0:00:50]}  Qxc4 {[%clk 0:00:27]} 26. f4 {[%clk 0:00:45]}  Nf7 {[%clk 0:00:22]} 27. Qxd3 {[%clk 0:00:39]}  Qc5+ {[%clk 0:00:15]} 28. Kh2 {[%clk 0:00:38]}  Bxb2 {[%clk 0:00:15]} 29. Rxe6 {[%clk 0:00:36]}  Qxa3 {[%clk 0:00:14]} 30. Qxa3 {[%clk 0:00:30]}  Bxa3 {[%clk 0:00:15]} 31. Rd7 {[%clk 0:00:29]}  b5 {[%clk 0:00:12]} 32. Bd5 {[%clk 0:00:29]}  Rf8 {[%clk 0:00:01]} 33. Rf6 {[%clk 0:00:27]} 1-0


[Site "https://www.chess.com"]

[Event "Late Titled Tuesday Blitz February 8 2022"]
[White "Jacobson, Brandon"]
[Black "Villegas, Pierre"]
[WhiteFideId "30901561"]
[BlackFideId "654183"]
[WhiteElo "2362"]
[BlackElo "2410"]
[Result "1-0"]
[Round "01"]
[TimeControl "180+1"]
[Date "2022.02.08"]
[WhiteClock "0:00:48"]
[BlackClock "0:00:15"]

1. Nf3 {[%clk 0:02:56]}  d5 {[%clk 0:02:59]} 2. e3 {[%clk 0:02:54]}  Nf6 {[%clk 0:02:58]} 3. c4 {[%clk 0:02:55]}  e6 {[%clk 0:02:58]} 4. Nc3 {[%clk 0:02:55]}  c5 {[%clk 0:02:58]} 5. cxd5 {[%clk 0:02:55]}  exd5 {[%clk 0:02:58]} 6. d4 {[%clk 0:02:53]}  Nc6 {[%clk 0:02:56]} 7. Bb5 {[%clk 0:02:54]}  cxd4 {[%clk 0:02:41]} 8. Nxd4 {[%clk 0:02:54]}  Bd7 {[%clk 0:02:41]} 9. O-O {[%clk 0:02:49]}  Bd6 {[%clk 0:02:41]} 10. Nf3 {[%clk 0:02:50]}  Bg4 {[%clk 0:02:17]} 11. h3 {[%clk 0:02:46]}  Bxf3 {[%clk 0:02:17]} 12. Qxf3 {[%clk 0:02:47]}  O-O {[%clk 0:02:17]} 13. Rd1 {[%clk 0:02:39]}  Ne5 {[%clk 0:02:17]} 14. Qe2 {[%clk 0:02:39]}  Bb4 {[%clk 0:02:10]} 15. Bd2 {[%clk 0:02:36]}  Qe7 {[%clk 0:02:04]} 16. Be1 {[%clk 0:02:21]}  Rfd8 {[%clk 0:02:02]} 17. Ba4 {[%clk 0:02:18]}  Nc6 {[%clk 0:01:47]} 18. a3 {[%clk 0:02:05]}  Bc5 {[%clk 0:01:29]} 19. Rac1 {[%clk 0:01:57]}  Bb6 {[%clk 0:01:10]} 20. Bxc6 {[%clk 0:01:43]}  bxc6 {[%clk 0:01:11]} 21. Na4 {[%clk 0:01:44]}  d4 {[%clk 0:00:54]} 22. Nxb6 {[%clk 0:01:41]}  axb6 {[%clk 0:00:55]} 23. Rxc6 {[%clk 0:01:41]}  dxe3 {[%clk 0:00:47]} 24. Rxd8+ {[%clk 0:01:40]}  Rxd8 {[%clk 0:00:47]} 25. Qxe3 {[%clk 0:01:41]}  Qd7 {[%clk 0:00:31]} 26. Rc1 {[%clk 0:01:27]}  Nd5 {[%clk 0:00:28]} 27. Qf3 {[%clk 0:01:21]}  h6 {[%clk 0:00:28]} 28. Rd1 {[%clk 0:01:19]}  Qe6 {[%clk 0:00:27]} 29. Bc3 {[%clk 0:01:17]}  Rd7 {[%clk 0:00:25]} 30. Qg4 {[%clk 0:01:04]}  f5 {[%clk 0:00:21]} 31. Qc4 {[%clk 0:00:59]}  Kf7 {[%clk 0:00:19]} 32. Re1 {[%clk 0:00:58]}  Qd6 {[%clk 0:00:16]} 33. Re5 {[%clk 0:00:58]}  Kg6 {[%clk 0:00:15]} 34. Qd3 {[%clk 0:00:48]} 1-0


[Site "https://www.chess.com"]

[Event "Late Titled Tuesday Blitz February 8 2022"]
[White "Jarocka, Liwia"]
[Black "Jaracz, Pawel"]
[WhiteFideId "21807558"]
[BlackFideId "1102222"]
[WhiteElo "1896"]
[BlackElo "2429"]
[Result "0-1"]
[Round "01"]
[TimeControl "180+1"]
[Date "2022.02.09"]
[WhiteClock "0:00:39"]
[BlackClock "0:01:06"]

1. h4 {[%clk 0:03:00]}  h5 {[%clk 0:02:57]} 2. g3 {[%clk 0:02:59]}  e6 {[%clk 0:02:57]} 3. Bg2 {[%clk 0:03:00]}  Ke7 {[%clk 0:02:57]} 4. Nf3 {[%clk 0:02:59]}  Ke8 {[%clk 0:02:58]} 5. e4 {[%clk 0:03:00]}  d6 {[%clk 0:02:58]} 6. Ke2 {[%clk 0:02:58]}  Nf6 {[%clk 0:02:56]} 7. d3 {[%clk 0:02:57]}  Be7 {[%clk 0:02:56]} 8. Bg5 {[%clk 0:02:57]}  c5 {[%clk 0:02:56]} 9. Nc3 {[%clk 0:02:56]}  Nc6 {[%clk 0:02:56]} 10. Re1 {[%clk 0:02:55]}  e5 {[%clk 0:02:56]} 11. Kf1 {[%clk 0:02:55]}  Bg4 {[%clk 0:02:55]} 12. Qd2 {[%clk 0:02:53]}  Qd7 {[%clk 0:02:54]} 13. Bxf6 {[%clk 0:02:52]}  Bxf6 {[%clk 0:02:54]} 14. Nd5 {[%clk 0:02:51]}  Bd8 {[%clk 0:02:50]} 15. Nh2 {[%clk 0:02:45]}  Be6 {[%clk 0:02:49]} 16. Ne3 {[%clk 0:02:42]}  g6 {[%clk 0:02:42]} 17. Kg1 {[%clk 0:02:33]}  Kf8 {[%clk 0:02:32]} 18. c3 {[%clk 0:02:33]}  Kg7 {[%clk 0:02:30]} 19. f4 {[%clk 0:02:29]}  exf4 {[%clk 0:02:22]} 20. gxf4 {[%clk 0:02:30]}  Bxh4 {[%clk 0:02:22]} 21. Rf1 {[%clk 0:02:30]}  f5 {[%clk 0:02:07]} 22. exf5 {[%clk 0:02:04]}  gxf5 {[%clk 0:02:05]} 23. Nf3 {[%clk 0:02:03]}  Bf6 {[%clk 0:01:56]} 24. Kf2 {[%clk 0:02:03]}  Rag8 {[%clk 0:01:52]} 25. Bh3 {[%clk 0:02:02]}  Kf8 {[%clk 0:01:48]} 26. Rg1 {[%clk 0:01:53]}  Rg4 {[%clk 0:01:48]} 27. Bxg4 {[%clk 0:01:31]}  fxg4 {[%clk 0:01:42]} 28. Ng5 {[%clk 0:01:29]}  Bxg5 {[%clk 0:01:37]} 29. fxg5 {[%clk 0:01:30]}  Ne5 {[%clk 0:01:36]} 30. Ke2 {[%clk 0:01:17]}  Nf3 {[%clk 0:01:35]} 31. Rgf1 {[%clk 0:01:12]}  Qc6 {[%clk 0:01:23]} 32. d4 {[%clk 0:01:02]}  Qe4 {[%clk 0:01:20]} 33. Qd3 {[%clk 0:00:59]}  Qxd3+ {[%clk 0:01:13]} 34. Kxd3 {[%clk 0:00:59]}  Kg7 {[%clk 0:01:12]} 35. d5 {[%clk 0:00:57]}  Bd7 {[%clk 0:01:11]} 36. c4 {[%clk 0:00:48]}  Kg6 {[%clk 0:01:09]} 37. b4 {[%clk 0:00:41]}  Kxg5 {[%clk 0:01:06]} 38. bxc5 {[%clk 0:00:41]}  dxc5 {[%clk 0:01:06]} 39. Rab1 {[%clk 0:00:41]}  b6 {[%clk 0:01:07]} 40. Nd1 {[%clk 0:00:39]}  Bf5+ {[%clk 0:01:06]} 0-1


[Site "https://www.chess.com"]